Workbook

Sheet Introduction
B1: SalesPlanner Plus+ Approach
B3: Sales Planner Plus+ allow you to develop a monthly sales revenue plan for up to three years. The sales plan incorporates features such as product or market groups with revenue subtotals, an unlimited number of products within each group and up to 20 seasonal sales patterns that can be customised and applied individually to each product/revenue line. Direct sales costs can be applied to the revenue plan to calculate gross margin and percentage gross margin for each month.
B5: Sales Planner Plus+ also incorporates a sensitivity analysis feature whereby a + or — percentage change can be applied to each line item for each of the three years and the revenue and gross margin projections are recalculated. Thus, "What If" analysis can be done on scenarios where a particular revenue stream (product or market) is, say, 20% less, while another revenue stream is, say, 5% higher.
B7: Each monthly revenue figure is calculated by taking the current annual sales for that line item applying the entered annual percentage change (+ or — ) to get future years' total. Each monthly sales revenue value is calculated by applying one of up to 20 totally customisable monthly sales patterns to the annual total.
B9: See the attached User Instructions. Enjoy!!

Sheet User Instructions
B1: Marketing Budget Template
B4: A comprehensive User Guide can be downloaded from
B5: http://www.businesstoolsstore.com/pages/User-Guides.html
B12: Copyright © 2011 The Business Tools Store.
C24: The Revenue Projection for each Product for each month | D24: The Revenue Projection for each Product for each month | E24: The Revenue Projection for each Product for each month | F24: The Revenue Projection for each Product for each month | G24: The Revenue Projection for each Product for each month | H24: The Revenue Projection for each Product for each month | I24: The Revenue Projection for each Product for each month | J24: The Revenue Projection for each Product for each month | K24: The Revenue Projection for each Product for each month | L24: The Revenue Projection for each Product for each month | M24: The Revenue Projection for each Product for each month | N24: The Revenue Projection for each Product for each month | O24: The Revenue Projection for each Product for each month | P24: The Revenue Projection for each Product for each month | Q24: The Revenue Projection for each Product for each month | R24: The Revenue Projection for each Product for each month | S24: The Revenue Projection for each Product for each month | T24: The Revenue Projection for each Product for each month | U24: The Revenue Projection for each Product for each month | V24: The Revenue Projection for each Product for each month | W24: The Revenue Projection for each Product for each month | X24: The Revenue Projection for each Product for each month | Y24: The Revenue Projection for each Product for each month | Z24: The Revenue Projection for each Product for each month | AA24: The Revenue Projection for each Product for each month | AB24: The Revenue Projection for each Product for each month | AC24: The Revenue Projection for each Product for each month | AD24: The Revenue Projection for each Product for each month | AE24: The Revenue Projection for each Product for each month | AF24: The Revenue Projection for each Product for each month | AG24: The Revenue Projection for each Product for each month | AH24: The Revenue Projection for each Product for each month | AI24: The Revenue Projection for each Product for each month | AJ24: The Revenue Projection for each Product for each month | AK24: The Revenue Projection for each Product for each month | AL24: The Revenue Projection for each Product for each month | AM24: The Revenue Projection for each Product for each month | AN24: The Revenue Projection for each Product for each month | AO24: The Revenue Projection for each Product for each month | AP24: The Revenue Projection for each Product for each month | AQ24: The Revenue Projection for each Product for each month | AR24: The Revenue Projection for each Product for each month | AS24: The Revenue Projection for each Product for each month | AT24: The Revenue Projection for each Product for each month | AU24: The Revenue Projection for each Product for each month | AV24: The Revenue Projection for each Product for each month | AW24: The Revenue Projection for each Product for each month | AX24: The Revenue Projection for each Product for each month | AY24: The Revenue Projection for each Product for each month | AZ24: The Revenue Projection for each Product for each month | BA24: The Revenue Projection for each Product for each month | BB24: The Revenue Projection for each Product for each month | BC24: The Revenue Projection for each Product for each month | BD24: The Revenue Projection for each Product for each month | BE24: The Revenue Projection for each Product for each month | BF24: The Revenue Projection for each Product for each month | BG24: The Revenue Projection for each Product for each month | BH24: The Revenue Projection for each Product for each month | BI24: The Revenue Projection for each Product for each month | BJ24: The Revenue Projection for each Product for each month | BK24: The Revenue Projection for each Product for each month | BL24: The Revenue Projection for each Product for each month | BM24: The Revenue Projection for each Product for each month | BN24: The Revenue Projection for each Product for each month | BO24: The Revenue Projection for each Product for each month | BP24: The Revenue Projection for each Product for each month | BQ24: The Revenue Projection for each Product for each month | BR24: The Revenue Projection for each Product for each month | BS24: The Revenue Projection for each Product for each month | BT24: The Revenue Projection for each Product for each month | BU24: The Revenue Projection for each Product for each month | BV24: The Revenue Projection for each Product for each month | BW24: The Revenue Projection for each Product for each month | BX24: The Revenue Projection for each Product for each month | BY24: The Revenue Projection for each Product for each month | BZ24: The Revenue Projection for each Product for each month | CA24: The Revenue Projection for each Product for each month | CB24: The Revenue Projection for each Product for each month | CC24: The Revenue Projection for each Product for each month | CD24: The Revenue Projection for each Product for each month | CE24: The Revenue Projection for each Product for each month | CF24: The Revenue Projection for each Product for each month | CG24: The Revenue Projection for each Product for each month | CH24: The Revenue Projection for each Product for each month | CI24: The Revenue Projection for each Product for each month | CJ24: The Revenue Projection for each Product for each month | CK24: The Revenue Projection for each Product for each month | CL24: The Revenue Projection for each Product for each month | CM24: The Revenue Projection for each Product for each month | CN24: The Revenue Projection for each Product for each month | CO24: The Revenue Projection for each Product for each month | CP24: The Revenue Projection for each Product for each month | CQ24: The Revenue Projection for each Product for each month | CR24: The Revenue Projection for each Product for each month | CS24: The Revenue Projection for each Product for each month | CT24: The Revenue Projection for each Product for each month | CU24: The Revenue Projection for each Product for each month | CV24: The Revenue Projection for each Product for each month | CW24: The Revenue Projection for each Product for each month | CX24: The Revenue Projection for each Product for each month | CY24: The Revenue Projection for each Product for each month | CZ24: The Revenue Projection for each Product for each month | DA24: The Revenue Projection for each Product for each month | DB24: The Revenue Projection for each Product for each month | DC24: The Revenue Projection for each Product for each month | DD24: The Revenue Projection for each Product for each month | DE24: The Revenue Projection for each Product for each month | DF24: The Revenue Projection for each Product for each month | DG24: The Revenue Projection for each Product for each month | DH24: The Revenue Projection for each Product for each month | DI24: The Revenue Projection for each Product for each month | DJ24: The Revenue Projection for each Product for each month | DK24: The Revenue Projection for each Product for each month | DL24: The Revenue Projection for each Product for each month | DM24: The Revenue Projection for each Product for each month | DN24: The Revenue Projection for each Product for each month | DO24: The Revenue Projection for each Product for each month | DP24: The Revenue Projection for each Product for each month | DQ24: The Revenue Projection for each Product for each month | DR24: The Revenue Projection for each Product for each month | DS24: The Revenue Projection for each Product for each month | DT24: The Revenue Projection for each Product for each month | DU24: The Revenue Projection for each Product for each month | DV24: The Revenue Projection for each Product for each month | DW24: The Revenue Projection for each Product for each month | DX24: The Revenue Projection for each Product for each month | DY24: The Revenue Projection for each Product for each month | DZ24: The Revenue Projection for each Product for each month | EA24: The Revenue Projection for each Product for each month | EB24: The Revenue Projection for each Product for each month | EC24: The Revenue Projection for each Product for each month | ED24: The Revenue Projection for each Product for each month | EE24: The Revenue Projection for each Product for each month | EF24: The Revenue Projection for each Product for each month | EG24: The Revenue Projection for each Product for each month | EH24: The Revenue Projection for each Product for each month | EI24: The Revenue Projection for each Product for each month | EJ24: The Revenue Projection for each Product for each month | EK24: The Revenue Projection for each Product for each month | EL24: The Revenue Projection for each Product for each month | EM24: The Revenue Projection for each Product for each month | EN24: The Revenue Projection for each Product for each month | EO24: The Revenue Projection for each Product for each month | EP24: The Revenue Projection for each Product for each month | EQ24: The Revenue Projection for each Product for each month | ER24: The Revenue Projection for each Product for each month | ES24: The Revenue Projection for each Product for each month | ET24: The Revenue Projection for each Product for each month | EU24: The Revenue Projection for each Product for each month | EV24: The Revenue Projection for each Product for each month | EW24: The Revenue Projection for each Product for each month | EX24: The Revenue Projection for each Product for each month | EY24: The Revenue Projection for each Product for each month | EZ24: The Revenue Projection for each Product for each month | FA24: The Revenue Projection for each Product for each month | FB24: The Revenue Projection for each Product for each month | FC24: The Revenue Projection for each Product for each month | FD24: The Revenue Projection for each Product for each month | FE24: The Revenue Projection for each Product for each month | FF24: The Revenue Projection for each Product for each month | FG24: The Revenue Projection for each Product for each month | FH24: The Revenue Projection for each Product for each month | FI24: The Revenue Projection for each Product for each month | FJ24: The Revenue Projection for each Product for each month | FK24: The Revenue Projection for each Product for each month | FL24: The Revenue Projection for each Product for each month | FM24: The Revenue Projection for each Product for each month | FN24: The Revenue Projection for each Product for each month | FO24: The Revenue Projection for each Product for each month | FP24: The Revenue Projection for each Product for each month | FQ24: The Revenue Projection for each Product for each month | FR24: The Revenue Projection for each Product for each month | FS24: The Revenue Projection for each Product for each month | FT24: The Revenue Projection for each Product for each month | FU24: The Revenue Projection for each Product for each month | FV24: The Revenue Projection for each Product for each month | FW24: The Revenue Projection for each Product for each month | FX24: The Revenue Projection for each Product for each month | FY24: The Revenue Projection for each Product for each month | FZ24: The Revenue Projection for each Product for each month | GA24: The Revenue Projection for each Product for each month | GB24: The Revenue Projection for each Product for each month | GC24: The Revenue Projection for each Product for each month | GD24: The Revenue Projection for each Product for each month | GE24: The Revenue Projection for each Product for each month | GF24: The Revenue Projection for each Product for each month | GG24: The Revenue Projection for each Product for each month | GH24: The Revenue Projection for each Product for each month | GI24: The Revenue Projection for each Product for each month | GJ24: The Revenue Projection for each Product for each month | GK24: The Revenue Projection for each Product for each month | GL24: The Revenue Projection for each Product for each month | GM24: The Revenue Projection for each Product for each month | GN24: The Revenue Projection for each Product for each month | GO24: The Revenue Projection for each Product for each month | GP24: The Revenue Projection for each Product for each month | GQ24: The Revenue Projection for each Product for each month | GR24: The Revenue Projection for each Product for each month | GS24: The Revenue Projection for each Product for each month | GT24: The Revenue Projection for each Product for each month | GU24: The Revenue Projection for each Product for each month | GV24: The Revenue Projection for each Product for each month | GW24: The Revenue Projection for each Product for each month | GX24: The Revenue Projection for each Product for each month | GY24: The Revenue Projection for each Product for each month | GZ24: The Revenue Projection for each Product for each month | HA24: The Revenue Projection for each Product for each month | HB24: The Revenue Projection for each Product for each month | HC24: The Revenue Projection for each Product for each month | HD24: The Revenue Projection for each Product for each month | HE24: The Revenue Projection for each Product for each month | HF24: The Revenue Projection for each Product for each month | HG24: The Revenue Projection for each Product for each month | HH24: The Revenue Projection for each Product for each month | HI24: The Revenue Projection for each Product for each month | HJ24: The Revenue Projection for each Product for each month | HK24: The Revenue Projection for each Product for each month | HL24: The Revenue Projection for each Product for each month | HM24: The Revenue Projection for each Product for each month | HN24: The Revenue Projection for each Product for each month | HO24: The Revenue Projection for each Product for each month | HP24: The Revenue Projection for each Product for each month | HQ24: The Revenue Projection for each Product for each month | HR24: The Revenue Projection for each Product for each month | HS24: The Revenue Projection for each Product for each month | HT24: The Revenue Projection for each Product for each month | HU24: The Revenue Projection for each Product for each month | HV24: The Revenue Projection for each Product for each month | HW24: The Revenue Projection for each Product for each month | HX24: The Revenue Projection for each Product for each month | HY24: The Revenue Projection for each Product for each month | HZ24: The Revenue Projection for each Product for each month | IA24: The Revenue Projection for each Product for each month | IB24: The Revenue Projection for each Product for each month | IC24: The Revenue Projection for each Product for each month | ID24: The Revenue Projection for each Product for each month | IE24: The Revenue Projection for each Product for each month | IF24: The Revenue Projection for each Product for each month | IG24: The Revenue Projection for each Product for each month | IH24: The Revenue Projection for each Product for each month | II24: The Revenue Projection for each Product for each month | IJ24: The Revenue Projection for each Product for each month | IK24: The Revenue Projection for each Product for each month | IL24: The Revenue Projection for each Product for each month | IM24: The Revenue Projection for each Product for each month | IN24: The Revenue Projection for each Product for each month | IO24: The Revenue Projection for each Product for each month | IP24: The Revenue Projection for each Product for each month | IQ24: The Revenue Projection for each Product for each month | IR24: The Revenue Projection for each Product for each month | IS24: The Revenue Projection for each Product for each month | IT24: The Revenue Projection for each Product for each month | IU24: The Revenue Projection for each Product for each month | IV24: The Revenue Projection for each Product for each month

Sheet Budget Data
A1: Marketing Budget Template | V1: WORK AREA Do NOT Delete
W2: 0 | X2: Dec | Y2: 31
A3: Copyright © 2011 The Business Tools Store. | F3: Seasonal Expenditure Patterns | N3: =$B$23 -> The Big Software Co. Ltd | W3: 1 | X3: Jan | Y3: 31 | Z3: 1
A4: The Marketing Budget template allows one to create a marketing budget taking into account current year expenditure, growth factors and seasonal expenditure patterns. The budget is displayed in tabular and graphic formats. | N4: ="Seasonal Expenditure Patterns" -> Seasonal Expenditure Patterns | W4: 2 | X4: Feb | Y4: 28 | Z4: 32
F5: Pattern No. | G5: Pattern Description | H5: =$H$29 -> 1904-01-02 | I5: =$I$29 -> 1904-02-02 | J5: =$J$29 -> 1904-03-04 | K5: =$K$29 -> 1904-04-04 | L5: =$L$29 -> 1904-05-05 | M5: =$M$29 -> 1904-06-05 | N5: =$N$29 -> 1904-07-06 | O5: =$O$29 -> 1904-08-06 | P5: =$P$29 -> 1904-09-06 | Q5: =$Q$29 -> 1904-10-07 | R5: =$R$29 -> 1904-11-07 | S5: =$S$29 -> 1904-12-08 | T5: TOTAL | W5: 3 | X5: Mar | Y5: 31 | Z5: 61
F6: 1 | G6: Flat Expenditure | H6: =1/12 -> 0.08333333333 | I6: =1/12 -> 0.08333333333 | J6: 0.08333333333 | K6: 0.08333333333 | L6: 0.08333333333 | M6: 0.08333333333 | N6: 0.08333333333 | O6: 0.08333333333 | P6: 0.08333333333 | Q6: 0.08333333333 | R6: 0.08333333333 | S6: 0.08333333333 | T6: =SUM(H6:S6) -> 1 | U6: =IF((T6)<>1,"Seasonal Factors not = 100%","" ) ->  | W6: 4 | X6: Apr | Y6: 30 | Z6: 92
F7: 2 | G7: Quarterly Lumps | H7: 0 | I7: 0.25 | J7: 0 | K7: 0 | L7: 0.25 | M7: 0 | N7: 0 | O7: 0.25 | P7: 0 | Q7: 0 | R7: 0.25 | S7: 0 | T7: =SUM(H7:S7) -> 1 | U7: =IF((T7)<>1,"Seasonal Factors not = 100%"," ") ->  | W7: 5 | X7: May | Y7: 31 | Z7: 122
F8: 3 | G8: Steady Growth | H8: 0.025 | I8: 0.035 | J8: 0.05 | K8: 0.06 | L8: 0.07 | M8: 0.08 | N8: 0.09 | O8: 0.1 | P8: 0.11 | Q8: 0.12 | R8: 0.125 | S8: 0.135 | T8: =SUM(H8:S8) -> 1 | U8: =IF((T8)<>1,"Seasonal Factors not = 100%","") ->  | W8: 6 | X8: Jun | Y8: 30 | Z8: 153
F9: 4 | G9: 2nd Qtr Start | H9: 0 | I9: 0 | J9: 0 | K9: 0.05 | L9: 0.06 | M9: 0.08 | N9: 0.11 | O9: 0.12 | P9: 0.13 | Q9: 0.14 | R9: 0.15 | S9: 0.16 | T9: =SUM(H9:S9) -> 1 | U9: =IF((T9)<>1,"Seasonal Factors not = 100%","") ->  | W9: 7 | X9: Jul | Y9: 31 | Z9: 183
F10: 5 | G10: Half Year Start | H10: 0 | I10: 0 | J10: 0 | K10: 0 | L10: 0 | M10: 0 | N10: 0.05 | O10: 0.09 | P10: 0.14 | Q10: 0.19 | R10: 0.24 | S10: 0.29 | T10: =SUM(H10:S10) -> 1 | U10: =IF((T10)<>1,"Seasonal Factors not = 100%","") ->  | W10: 8 | X10: Aug | Y10: 31 | Z10: 214
B11: Set Up/Data Entry | C11: Print | F11: 6 | G11: Declining | H11: 0.11 | I11: 0.11 | J11: 0.1 | K11: 0.1 | L11: 0.09 | M11: 0.09 | N11: 0.08 | O11: 0.08 | P11: 0.07 | Q11: 0.07 | R11: 0.05 | S11: 0.05 | T11: 1 | W11: 9 | X11: Sep | Y11: 30 | Z11: 245
A12: Macro to change currency | F12: 7 | G12: Pattern 7 | H12: =1/12 -> 0.08333333333 | I12: 0.08333333333 | J12: 0.08333333333 | K12: 0.08333333333 | L12: 0.08333333333 | M12: 0.08333333333 | N12: 0.08333333333 | O12: 0.08333333333 | P12: 0.08333333333 | Q12: 0.08333333333 | R12: 0.08333333333 | S12: 0.08333333333 | T12: 1 | W12: 10 | X12: Oct | Y12: 31 | Z12: 275
A13: symbol has been disabled | F13: 8 | G13: Pattern 8 | H13: 0.08333333333 | I13: 0.08333333333 | J13: 0.08333333333 | K13: 0.08333333333 | L13: 0.08333333333 | M13: 0.08333333333 | N13: 0.08333333333 | O13: 0.08333333333 | P13: 0.08333333333 | Q13: 0.08333333333 | R13: 0.08333333333 | S13: 0.08333333333 | T13: 1 | W13: 11 | X13: Nov | Y13: 30 | Z13: 306
A14: in the Demo version | F14: 9 | G14: Pattern 9 | H14: 0.08333333333 | I14: 0.08333333333 | J14: 0.08333333333 | K14: 0.08333333333 | L14: 0.08333333333 | M14: 0.08333333333 | N14: 0.08333333333 | O14: 0.08333333333 | P14: 0.08333333333 | Q14: 0.08333333333 | R14: 0.08333333333 | S14: 0.08333333333 | T14: 1 | W14: 12 | X14: Dec | Y14: 31 | Z14: 336
F15: 10 | G15: Pattern 10 | H15: 0.08333333333 | I15: 0.08333333333 | J15: 0.08333333333 | K15: 0.08333333333 | L15: 0.08333333333 | M15: 0.08333333333 | N15: 0.08333333333 | O15: 0.08333333333 | P15: 0.08333333333 | Q15: 0.08333333333 | R15: 0.08333333333 | S15: 0.08333333333 | T15: 1
F16: 11 | G16: Pattern 11 | H16: 0.08333333333 | I16: 0.08333333333 | J16: 0.08333333333 | K16: 0.08333333333 | L16: 0.08333333333 | M16: 0.08333333333 | N16: 0.08333333333 | O16: 0.08333333333 | P16: 0.08333333333 | Q16: 0.08333333333 | R16: 0.08333333333 | S16: 0.08333333333 | T16: 1
F17: 12 | G17: Pattern 12 | H17: 0.08333333333 | I17: 0.08333333333 | J17: 0.08333333333 | K17: 0.08333333333 | L17: 0.08333333333 | M17: 0.08333333333 | N17: 0.08333333333 | O17: 0.08333333333 | P17: 0.08333333333 | Q17: 0.08333333333 | R17: 0.08333333333 | S17: 0.08333333333 | T17: 1
B18: In the demo version the cells in RED are locked and cannot be edited. This restriction does not apply to the Full version which can be downloaded from The Business Tools Store at www.businesstoolsstore.com | F18: 13 | G18: Pattern 13 | H18: 0.08333333333 | I18: 0.08333333333 | J18: 0.08333333333 | K18: 0.08333333333 | L18: 0.08333333333 | M18: 0.08333333333 | N18: 0.08333333333 | O18: 0.08333333333 | P18: 0.08333333333 | Q18: 0.08333333333 | R18: 0.08333333333 | S18: 0.08333333333 | T18: 1
F19: 14 | G19: Pattern 14 | H19: 0.08333333333 | I19: 0.08333333333 | J19: 0.08333333333 | K19: 0.08333333333 | L19: 0.08333333333 | M19: 0.08333333333 | N19: 0.08333333333 | O19: 0.08333333333 | P19: 0.08333333333 | Q19: 0.08333333333 | R19: 0.08333333333 | S19: 0.08333333333 | T19: 1
F20: 15 | G20: Pattern 15 | H20: 0.08333333333 | I20: 0.08333333333 | J20: 0.08333333333 | K20: 0.08333333333 | L20: 0.08333333333 | M20: 0.08333333333 | N20: 0.08333333333 | O20: 0.08333333333 | P20: 0.08333333333 | Q20: 0.08333333333 | R20: 0.08333333333 | S20: 0.08333333333 | T20: 1
F21: 16 | G21: Pattern 16 | H21: 0.08333333333 | I21: 0.08333333333 | J21: 0.08333333333 | K21: 0.08333333333 | L21: 0.08333333333 | M21: 0.08333333333 | N21: 0.08333333333 | O21: 0.08333333333 | P21: 0.08333333333 | Q21: 0.08333333333 | R21: 0.08333333333 | S21: 0.08333333333 | T21: 1
F22: 17 | G22: Pattern 17 | H22: 0.08333333333 | I22: 0.08333333333 | J22: 0.08333333333 | K22: 0.08333333333 | L22: 0.08333333333 | M22: 0.08333333333 | N22: 0.08333333333 | O22: 0.08333333333 | P22: 0.08333333333 | Q22: 0.08333333333 | R22: 0.08333333333 | S22: 0.08333333333 | T22: 1
A23: Budget Title: | B23: The Big Software Co. Ltd | F23: 18 | G23: Pattern 18 | H23: 0.08333333333 | I23: 0.08333333333 | J23: 0.08333333333 | K23: 0.08333333333 | L23: 0.08333333333 | M23: 0.08333333333 | N23: 0.08333333333 | O23: 0.08333333333 | P23: 0.08333333333 | Q23: 0.08333333333 | R23: 0.08333333333 | S23: 0.08333333333 | T23: 1
A24: Start Year: | B24: 2012 | F24: 19 | G24: Pattern 19 | H24: 0.08333333333 | I24: 0.08333333333 | J24: 0.08333333333 | K24: 0.08333333333 | L24: 0.08333333333 | M24: 0.08333333333 | N24: 0.08333333333 | O24: 0.08333333333 | P24: 0.08333333333 | Q24: 0.08333333333 | R24: 0.08333333333 | S24: 0.08333333333 | T24: 1
A25: Start Month (1-12): | B25: 1 | F25: 20 | G25: Pattern 20 | H25: 0.08333333333 | I25: 0.08333333333 | J25: 0.08333333333 | K25: 0.08333333333 | L25: 0.08333333333 | M25: 0.08333333333 | N25: 0.08333333333 | O25: 0.08333333333 | P25: 0.08333333333 | Q25: 0.08333333333 | R25: 0.08333333333 | S25: 0.08333333333 | T25: =SUM(H25:S25) -> 1 | U25: =IF((T25)<>1,"Seasonal Factors not = 100%","") -> 
A26: =VLOOKUP($B$25,Calender,4) -> 1 | C26: =IF(B25=1,B24,B24+1) -> 2012
N27: =$B$23 -> The Big Software Co. Ltd
N28: ="Marketing Budget for Year Ended "&VLOOKUP($B$25-1,Calender,3)&" "&VLOOKUP($B$25-1,Calender,2)&" "&$C$26 -> Marketing Budget for Year Ended 31 Dec 2012
A29: EXPENDITURE CATEGORIES | G29: =$A$29 -> EXPENDITURE CATEGORIES | H29: =A26 -> 1904-01-02 | I29: =H29+31 -> 1904-02-02 | J29: 1904-03-04 | K29: 1904-04-04 | L29: 1904-05-05 | M29: 1904-06-05 | N29: 1904-07-06 | O29: 1904-08-06 | P29: 1904-09-06 | Q29: 1904-10-07 | R29: 1904-11-07 | S29: 1904-12-08 | T29: TOTAL | U29: Yearly % Change
B31: Current | C31: % change. | D31: Seasonal Expenditure | G31: =$A$31 -> 0
A32: PERSONNEL | B32: Annual Expenditure | C32: Pos./Neg. | D32: Pattern | G32: =$A$32 -> PERSONNEL
A33: Column1 | B33: Column2 | C33: Column3 | D33: Column6 | E33: Column5 | F33: Column58 | G33: Column12 | H33: Column13 | I33: Column14 | J33: Column15 | K33: Column16 | L33: Column17 | M33: Column18 | N33: Column19 | O33: Column20 | P33: Column21 | Q33: Column22 | R33: Column23 | S33: Column24 | T33: Column25 | U33: Column26
A34: Salaries, wages | B34: 5000 | C34: 0.1 | D34: 1 | G34: =$A$34 -> Salaries, wages | H34: =($B34*(1+Growth1))*INDEX(Seasonal_Pattern_YR1,$D34,1) -> 458.3333333 | I34: =($B34*(1+Growth1))*INDEX(Seasonal_Pattern_YR1,$D34,2) -> 458.3333333 | J34: =($B34*(1+Growth1))*INDEX(Seasonal_Pattern_YR1,$D34,3) -> 458.3333333 | K34: =($B34*(1+Growth1))*INDEX(Seasonal_Pattern_YR1,$D34,4) -> 458.3333333 | L34: =($B34*(1+Growth1))*INDEX(Seasonal_Pattern_YR1,$D34,5) -> 458.3333333 | M34: =($B34*(1+Growth1))*INDEX(Seasonal_Pattern_YR1,$D34,6) -> 458.3333333 | N34: =($B34*(1+Growth1))*INDEX(Seasonal_Pattern_YR1,$D34,7) -> 458.3333333 | O34: =($B34*(1+Growth1))*INDEX(Seasonal_Pattern_YR1,$D34,8) -> 458.3333333 | P34: =($B34*(1+Growth1))*INDEX(Seasonal_Pattern_YR1,$D34,9) -> 458.3333333 | Q34: =($B34*(1+Growth1))*INDEX(Seasonal_Pattern_YR1,$D34,10) -> 458.3333333 | R34: =($B34*(1+Growth1))*INDEX(Seasonal_Pattern_YR1,$D34,11) -> 458.3333333 | S34: =($B34*(1+Growth1))*INDEX(Seasonal_Pattern_YR1,$D34,12) -> 458.3333333 | T34: =SUM(H34:S34) -> 5500 | U34: =IF(B34<>0,(T34-B34)/B34,0) -> 0.1
A35: Benefits | B35: 8000 | C35: 0.1 | D35: 1 | G35: =$A$35 -> Benefits | H35: 733.3333333 | I35: 733.3333333 | J35: 733.3333333 | K35: 733.3333333 | L35: 733.3333333 | M35: 733.3333333 | N35: 733.3333333 | O35: 733.3333333 | P35: 733.3333333 | Q35: 733.3333333 | R35: 733.3333333 | S35: 733.3333333 | T35: 8800 | U35: 0.1
A36: Commissions & Bonuses | B36: 9650 | C36: 0.1 | D36: 3 | G36: =$A36 -> Commissions & Bonuses | H36: 265.375 | I36: 371.525 | J36: 530.75 | K36: 636.9 | L36: 743.05 | M36: 849.2 | N36: 955.35 | O36: 1061.5 | P36: 1167.65 | Q36: 1273.8 | R36: 1326.875 | S36: 1433.025 | T36: =SUM(H36:S36) -> 10615 | U36: 0.1
A37: Recruitment | B37: 3000 | C37: 0 | D37: 5 | G37: =$A37 -> Recruitment | H37: 0 | I37: 0 | J37: 0 | K37: 0 | L37: 0 | M37: 0 | N37: 150 | O37: 270 | P37: 420 | Q37: 570 | R37: 720 | S37: 870 | T37: 3000 | U37: 0
A38: Expenses | B38: 15000 | C38: 0.05 | D38: 6 | G38: =$A38 -> Expenses | H38: 1732.5 | I38: 1732.5 | J38: 1575 | K38: 1575 | L38: 1417.5 | M38: 1417.5 | N38: 1260 | O38: 1260 | P38: 1102.5 | Q38: 1102.5 | R38: 787.5 | S38: 787.5 | T38: 15750 | U38: 0.05
A39: Travel | B39: 12000 | C39: 0.1 | D39: 1 | G39: =$A39 -> Travel | H39: 1100 | I39: 1100 | J39: 1100 | K39: 1100 | L39: 1100 | M39: 1100 | N39: 1100 | O39: 1100 | P39: 1100 | Q39: 1100 | R39: 1100 | S39: 1100 | T39: =SUM(H39:S39) -> 13200 | U39: 0.1
A40: Motoring | B40: 6000 | C40: 0 | D40: 1 | G40: =$A40 -> Motoring | H40: 500 | I40: 500 | J40: 500 | K40: 500 | L40: 500 | M40: 500 | N40: 500 | O40: 500 | P40: 500 | Q40: 500 | R40: 500 | S40: 500 | T40: 6000 | U40: 0
B41: Current | C41: % change. | G41: Group Total | H41: =SUM(H34:H40) -> 4789.541667 | I41: 4895.691667 | J41: 4897.416667 | K41: 5003.566667 | L41: 4952.216667 | M41: 5058.366667 | N41: 5157.016667 | O41: 5383.166667 | P41: 5481.816667 | Q41: 5737.966667 | R41: 5626.041667 | S41: 5882.191667 | T41: 62865
A42: OFFLINE MARKETING | B42: Annual Expenditure | C42: Pos./Neg. | G42: =$A42 -> OFFLINE MARKETING
A43: Column1 | B43: Column2 | C43: Column3 | D43: Column6 | E43: Column5 | F43: Column11 | G43: Column12 | H43: Column13 | I43: Column14 | J43: Column15 | K43: Column16 | L43: Column17 | M43: Column18 | N43: Column19 | O43: Column20 | P43: Column21 | Q43: Column22 | R43: Column23 | S43: Column24 | T43: Column25 | U43: Column26
A44: Public Relations | B44: 24000 | C44: 0 | D44: 1 | G44: Public Relations | H44: =($B44*(1+Growth1))*INDEX(Seasonal_Pattern_YR1,$D44,1) -> 2000 | I44: =($B44*(1+Growth1))*INDEX(Seasonal_Pattern_YR1,$D44,2) -> 2000 | J44: =($B44*(1+Growth1))*INDEX(Seasonal_Pattern_YR1,$D44,3) -> 2000 | K44: =($B44*(1+Growth1))*INDEX(Seasonal_Pattern_YR1,$D44,4) -> 2000 | L44: =($B44*(1+Growth1))*INDEX(Seasonal_Pattern_YR1,$D44,5) -> 2000 | M44: =($B44*(1+Growth1))*INDEX(Seasonal_Pattern_YR1,$D44,6) -> 2000 | N44: =($B44*(1+Growth1))*INDEX(Seasonal_Pattern_YR1,$D44,7) -> 2000 | O44: =($B44*(1+Growth1))*INDEX(Seasonal_Pattern_YR1,$D44,8) -> 2000 | P44: =($B44*(1+Growth1))*INDEX(Seasonal_Pattern_YR1,$D44,9) -> 2000 | Q44: =($B44*(1+Growth1))*INDEX(Seasonal_Pattern_YR1,$D44,10) -> 2000 | R44: =($B44*(1+Growth1))*INDEX(Seasonal_Pattern_YR1,$D44,11) -> 2000 | S44: =($B44*(1+Growth1))*INDEX(Seasonal_Pattern_YR1,$D44,12) -> 2000 | T44: =SUM(H44:S44) -> 24000 | U44: =IF(B44<>0,(T44-B44)/B44,0) -> 0
A45: Print Advertising | B45: 2000 | C45: 0 | D45: 2 | G45: Print Advertising | H45: =($B45*(1+Growth1))*INDEX(Seasonal_Pattern_YR1,$D45,1) -> 0 | I45: =($B45*(1+Growth1))*INDEX(Seasonal_Pattern_YR1,$D45,2) -> 500 | J45: =($B45*(1+Growth1))*INDEX(Seasonal_Pattern_YR1,$D45,3) -> 0 | K45: =($B45*(1+Growth1))*INDEX(Seasonal_Pattern_YR1,$D45,4) -> 0 | L45: =($B45*(1+Growth1))*INDEX(Seasonal_Pattern_YR1,$D45,5) -> 500 | M45: =($B45*(1+Growth1))*INDEX(Seasonal_Pattern_YR1,$D45,6) -> 0 | N45: =($B45*(1+Growth1))*INDEX(Seasonal_Pattern_YR1,$D45,7) -> 0 | O45: =($B45*(1+Growth1))*INDEX(Seasonal_Pattern_YR1,$D45,8) -> 500 | P45: =($B45*(1+Growth1))*INDEX(Seasonal_Pattern_YR1,$D45,9) -> 0 | Q45: =($B45*(1+Growth1))*INDEX(Seasonal_Pattern_YR1,$D45,10) -> 0 | R45: =($B45*(1+Growth1))*INDEX(Seasonal_Pattern_YR1,$D45,11) -> 500 | S45: =($B45*(1+Growth1))*INDEX(Seasonal_Pattern_YR1,$D45,12) -> 0 | T45: =SUM(H45:S45) -> 2000 | U45: =IF(B45<>0,(T45-B45)/B45,0) -> 0
A46: Tradeshows | B46: 1500 | C46: 0 | D46: 2 | G46: =$A46 -> Tradeshows | H46: =($B46*(1+Growth1))*INDEX(Seasonal_Pattern_YR1,$D46,1) -> 0 | I46: =($B46*(1+Growth1))*INDEX(Seasonal_Pattern_YR1,$D46,2) -> 375 | J46: =($B46*(1+Growth1))*INDEX(Seasonal_Pattern_YR1,$D46,3) -> 0 | K46: =($B46*(1+Growth1))*INDEX(Seasonal_Pattern_YR1,$D46,4) -> 0 | L46: =($B46*(1+Growth1))*INDEX(Seasonal_Pattern_YR1,$D46,5) -> 375 | M46: =($B46*(1+Growth1))*INDEX(Seasonal_Pattern_YR1,$D46,6) -> 0 | N46: =($B46*(1+Growth1))*INDEX(Seasonal_Pattern_YR1,$D46,7) -> 0 | O46: =($B46*(1+Growth1))*INDEX(Seasonal_Pattern_YR1,$D46,8) -> 375 | P46: =($B46*(1+Growth1))*INDEX(Seasonal_Pattern_YR1,$D46,9) -> 0 | Q46: =($B46*(1+Growth1))*INDEX(Seasonal_Pattern_YR1,$D46,10) -> 0 | R46: =($B46*(1+Growth1))*INDEX(Seasonal_Pattern_YR1,$D46,11) -> 375 | S46: =($B46*(1+Growth1))*INDEX(Seasonal_Pattern_YR1,$D46,12) -> 0 | T46: =SUM(H46:S46) -> 1500 | U46: =IF(B46<>0,(T46-B46)/B46,0) -> 0
A47: Seminars/events | B47: 1000 | C47: 0 | D47: 5 | G47: Seminars/events | H47: =($B47*(1+Growth1))*INDEX(Seasonal_Pattern_YR1,$D47,1) -> 0 | I47: =($B47*(1+Growth1))*INDEX(Seasonal_Pattern_YR1,$D47,2) -> 0 | J47: =($B47*(1+Growth1))*INDEX(Seasonal_Pattern_YR1,$D47,3) -> 0 | K47: =($B47*(1+Growth1))*INDEX(Seasonal_Pattern_YR1,$D47,4) -> 0 | L47: =($B47*(1+Growth1))*INDEX(Seasonal_Pattern_YR1,$D47,5) -> 0 | M47: =($B47*(1+Growth1))*INDEX(Seasonal_Pattern_YR1,$D47,6) -> 0 | N47: =($B47*(1+Growth1))*INDEX(Seasonal_Pattern_YR1,$D47,7) -> 50 | O47: =($B47*(1+Growth1))*INDEX(Seasonal_Pattern_YR1,$D47,8) -> 90 | P47: =($B47*(1+Growth1))*INDEX(Seasonal_Pattern_YR1,$D47,9) -> 140 | Q47: =($B47*(1+Growth1))*INDEX(Seasonal_Pattern_YR1,$D47,10) -> 190 | R47: =($B47*(1+Growth1))*INDEX(Seasonal_Pattern_YR1,$D47,11) -> 240 | S47: =($B47*(1+Growth1))*INDEX(Seasonal_Pattern_YR1,$D47,12) -> 290 | T47: =SUM(H47:S47) -> 1000 | U47: =IF(B47<>0,(T47-B47)/B47,0) -> 0
A48: Telemarketing Fees | B48: 2400 | C48: 0 | D48: 1 | G48: Telemarketing Fees | H48: =($B48*(1+Growth1))*INDEX(Seasonal_Pattern_YR1,$D48,1) -> 200 | I48: =($B48*(1+Growth1))*INDEX(Seasonal_Pattern_YR1,$D48,2) -> 200 | J48: =($B48*(1+Growth1))*INDEX(Seasonal_Pattern_YR1,$D48,3) -> 200 | K48: =($B48*(1+Growth1))*INDEX(Seasonal_Pattern_YR1,$D48,4) -> 200 | L48: =($B48*(1+Growth1))*INDEX(Seasonal_Pattern_YR1,$D48,5) -> 200 | M48: =($B48*(1+Growth1))*INDEX(Seasonal_Pattern_YR1,$D48,6) -> 200 | N48: =($B48*(1+Growth1))*INDEX(Seasonal_Pattern_YR1,$D48,7) -> 200 | O48: =($B48*(1+Growth1))*INDEX(Seasonal_Pattern_YR1,$D48,8) -> 200 | P48: =($B48*(1+Growth1))*INDEX(Seasonal_Pattern_YR1,$D48,9) -> 200 | Q48: =($B48*(1+Growth1))*INDEX(Seasonal_Pattern_YR1,$D48,10) -> 200 | R48: =($B48*(1+Growth1))*INDEX(Seasonal_Pattern_YR1,$D48,11) -> 200 | S48: =($B48*(1+Growth1))*INDEX(Seasonal_Pattern_YR1,$D48,12) -> 200 | T48: =SUM(H48:S48) -> 2400 | U48: =IF(B48<>0,(T48-B48)/B48,0) -> 0
B49: Current | C49: % change. | G49: Group Total | H49: =SUM(H44:H48) -> 2200 | I49: 3075 | J49: 2200 | K49: 2200 | L49: 3075 | M49: 2200 | N49: 2250 | O49: 3165 | P49: 2340 | Q49: 2390 | R49: 3315 | S49: 2490 | T49: 30900
A50: ONLINE MARKETING | B50: Annual Expenditure | C50: Pos./Neg. | G50: =$A50 -> ONLINE MARKETING | U50: =IF(B50=0,T50/B50,0) -> 0
A51: Column1 | B51: Column2 | C51: Column3 | D51: Column6 | E51: Column5 | F51: Column11 | G51: Column12 | H51: Column13 | I51: Column14 | J51: Column15 | K51: Column16 | L51: Column17 | M51: Column18 | N51: Column19 | O51: Column20 | P51: Column21 | Q51: Column22 | R51: Column23 | S51: Column24 | T51: Column25 | U51: Column26
A52: Website development/redesign | B52: 2400 | C52: 0 | D52: 2 | G52: =$A52 -> Website development/redesign | H52: =($B52*(1+Growth1))*INDEX(Seasonal_Pattern_YR1,$D52,1) -> 0 | I52: =($B52*(1+Growth1))*INDEX(Seasonal_Pattern_YR1,$D52,2) -> 600 | J52: =($B52*(1+Growth1))*INDEX(Seasonal_Pattern_YR1,$D52,3) -> 0 | K52: =($B52*(1+Growth1))*INDEX(Seasonal_Pattern_YR1,$D52,4) -> 0 | L52: =($B52*(1+Growth1))*INDEX(Seasonal_Pattern_YR1,$D52,5) -> 600 | M52: =($B52*(1+Growth1))*INDEX(Seasonal_Pattern_YR1,$D52,6) -> 0 | N52: =($B52*(1+Growth1))*INDEX(Seasonal_Pattern_YR1,$D52,7) -> 0 | O52: =($B52*(1+Growth1))*INDEX(Seasonal_Pattern_YR1,$D52,8) -> 600 | P52: =($B52*(1+Growth1))*INDEX(Seasonal_Pattern_YR1,$D52,9) -> 0 | Q52: =($B52*(1+Growth1))*INDEX(Seasonal_Pattern_YR1,$D52,10) -> 0 | R52: =($B52*(1+Growth1))*INDEX(Seasonal_Pattern_YR1,$D52,11) -> 600 | S52: =($B52*(1+Growth1))*INDEX(Seasonal_Pattern_YR1,$D52,12) -> 0 | T52: =SUM(H52:S52) -> 2400 | U52: =IF(B52<>0,(T52-B52)/B52,0) -> 0
A53: SEO | B53: 3600 | C53: 0 | D53: 1 | G53: =$A$54 -> PPC Advertising | H53: =($B53*(1+Growth1))*INDEX(Seasonal_Pattern_YR1,$D53,1) -> 300 | I53: =($B53*(1+Growth1))*INDEX(Seasonal_Pattern_YR1,$D53,2) -> 300 | J53: =($B53*(1+Growth1))*INDEX(Seasonal_Pattern_YR1,$D53,3) -> 300 | K53: =($B53*(1+Growth1))*INDEX(Seasonal_Pattern_YR1,$D53,4) -> 300 | L53: =($B53*(1+Growth1))*INDEX(Seasonal_Pattern_YR1,$D53,5) -> 300 | M53: =($B53*(1+Growth1))*INDEX(Seasonal_Pattern_YR1,$D53,6) -> 300 | N53: =($B53*(1+Growth1))*INDEX(Seasonal_Pattern_YR1,$D53,7) -> 300 | O53: =($B53*(1+Growth1))*INDEX(Seasonal_Pattern_YR1,$D53,8) -> 300 | P53: =($B53*(1+Growth1))*INDEX(Seasonal_Pattern_YR1,$D53,9) -> 300 | Q53: =($B53*(1+Growth1))*INDEX(Seasonal_Pattern_YR1,$D53,10) -> 300 | R53: =($B53*(1+Growth1))*INDEX(Seasonal_Pattern_YR1,$D53,11) -> 300 | S53: =($B53*(1+Growth1))*INDEX(Seasonal_Pattern_YR1,$D53,12) -> 300 | T53: =SUM(H53:S53) -> 3600 | U53: =IF(B53<>0,(T53-B53)/B53,0) -> 0
A54: PPC Advertising | B54: 6000 | C54: 0 | D54: 1 | G54: =$A$54 -> PPC Advertising | H54: =($B54*(1+Growth1))*INDEX(Seasonal_Pattern_YR1,$D54,1) -> 500 | I54: =($B54*(1+Growth1))*INDEX(Seasonal_Pattern_YR1,$D54,2) -> 500 | J54: =($B54*(1+Growth1))*INDEX(Seasonal_Pattern_YR1,$D54,3) -> 500 | K54: =($B54*(1+Growth1))*INDEX(Seasonal_Pattern_YR1,$D54,4) -> 500 | L54: =($B54*(1+Growth1))*INDEX(Seasonal_Pattern_YR1,$D54,5) -> 500 | M54: =($B54*(1+Growth1))*INDEX(Seasonal_Pattern_YR1,$D54,6) -> 500 | N54: =($B54*(1+Growth1))*INDEX(Seasonal_Pattern_YR1,$D54,7) -> 500 | O54: =($B54*(1+Growth1))*INDEX(Seasonal_Pattern_YR1,$D54,8) -> 500 | P54: =($B54*(1+Growth1))*INDEX(Seasonal_Pattern_YR1,$D54,9) -> 500 | Q54: =($B54*(1+Growth1))*INDEX(Seasonal_Pattern_YR1,$D54,10) -> 500 | R54: =($B54*(1+Growth1))*INDEX(Seasonal_Pattern_YR1,$D54,11) -> 500 | S54: =($B54*(1+Growth1))*INDEX(Seasonal_Pattern_YR1,$D54,12) -> 500 | T54: =SUM(H54:S54) -> 6000 | U54: =IF(B54<>0,(T54-B54)/B54,0) -> 0
A55: Webinars | B55: 1200 | C55: 0 | D55: 2 | G55: =$A55 -> Webinars | H55: =($B55*(1+Growth1))*INDEX(Seasonal_Pattern_YR1,$D55,1) -> 0 | I55: =($B55*(1+Growth1))*INDEX(Seasonal_Pattern_YR1,$D55,2) -> 300 | J55: =($B55*(1+Growth1))*INDEX(Seasonal_Pattern_YR1,$D55,3) -> 0 | K55: =($B55*(1+Growth1))*INDEX(Seasonal_Pattern_YR1,$D55,4) -> 0 | L55: =($B55*(1+Growth1))*INDEX(Seasonal_Pattern_YR1,$D55,5) -> 300 | M55: =($B55*(1+Growth1))*INDEX(Seasonal_Pattern_YR1,$D55,6) -> 0 | N55: =($B55*(1+Growth1))*INDEX(Seasonal_Pattern_YR1,$D55,7) -> 0 | O55: =($B55*(1+Growth1))*INDEX(Seasonal_Pattern_YR1,$D55,8) -> 300 | P55: =($B55*(1+Growth1))*INDEX(Seasonal_Pattern_YR1,$D55,9) -> 0 | Q55: =($B55*(1+Growth1))*INDEX(Seasonal_Pattern_YR1,$D55,10) -> 0 | R55: =($B55*(1+Growth1))*INDEX(Seasonal_Pattern_YR1,$D55,11) -> 300 | S55: =($B55*(1+Growth1))*INDEX(Seasonal_Pattern_YR1,$D55,12) -> 0 | T55: =SUM(H55:S55) -> 1200 | U55: =IF(B55<>0,(T55-B55)/B55,0) -> 0
A56: eMail Marketing | B56: 3000 | C56: 0.25 | D56: 3 | G56: =$A56 -> eMail Marketing | H56: =($B56*(1+Growth1))*INDEX(Seasonal_Pattern_YR1,$D56,1) -> 93.75 | I56: =($B56*(1+Growth1))*INDEX(Seasonal_Pattern_YR1,$D56,2) -> 131.25 | J56: =($B56*(1+Growth1))*INDEX(Seasonal_Pattern_YR1,$D56,3) -> 187.5 | K56: =($B56*(1+Growth1))*INDEX(Seasonal_Pattern_YR1,$D56,4) -> 225 | L56: =($B56*(1+Growth1))*INDEX(Seasonal_Pattern_YR1,$D56,5) -> 262.5 | M56: =($B56*(1+Growth1))*INDEX(Seasonal_Pattern_YR1,$D56,6) -> 300 | N56: =($B56*(1+Growth1))*INDEX(Seasonal_Pattern_YR1,$D56,7) -> 337.5 | O56: =($B56*(1+Growth1))*INDEX(Seasonal_Pattern_YR1,$D56,8) -> 375 | P56: =($B56*(1+Growth1))*INDEX(Seasonal_Pattern_YR1,$D56,9) -> 412.5 | Q56: =($B56*(1+Growth1))*INDEX(Seasonal_Pattern_YR1,$D56,10) -> 450 | R56: =($B56*(1+Growth1))*INDEX(Seasonal_Pattern_YR1,$D56,11) -> 468.75 | S56: =($B56*(1+Growth1))*INDEX(Seasonal_Pattern_YR1,$D56,12) -> 506.25 | T56: =SUM(H56:S56) -> 3750 | U56: =IF(B56<>0,(T56-B56)/B56,0) -> 0.25
B57: Current | C57: % change. | G57: Group Total | H57: =SUM(H52:H56) -> 893.75 | I57: 1831.25 | J57: 987.5 | K57: 1025 | L57: 1962.5 | M57: 1100 | N57: 1137.5 | O57: 2075 | P57: 1212.5 | Q57: 1250 | R57: 2168.75 | S57: 1306.25 | T57: 16950
A58: OVERHEAD & ADMINISTRATION | B58: Annual Expenditure | C58: Pos./Neg. | G58: =$A$58 -> OVERHEAD & ADMINISTRATION | U58: =IF(B58=0,T58/B58,0) -> 0
A59: Column1 | B59: Column2 | C59: Column3 | D59: Column6 | E59: Column5 | F59: Column11 | G59: Column12 | H59: Column13 | I59: Column14 | J59: Column15 | K59: Column16 | L59: Column17 | M59: Column18 | N59: Column19 | O59: Column20 | P59: Column21 | Q59: Column22 | R59: Column23 | S59: Column24 | T59: Column25 | U59: Column26
A60: PCs & Office Equipment | B60: 1800 | C60: 0 | D60: 1 | G60: =$A60 -> PCs & Office Equipment | H60: =($B60*(1+Growth1))*INDEX(Seasonal_Pattern_YR1,$D60,1) -> 150 | I60: =($B60*(1+Growth1))*INDEX(Seasonal_Pattern_YR1,$D60,2) -> 150 | J60: =($B60*(1+Growth1))*INDEX(Seasonal_Pattern_YR1,$D60,3) -> 150 | K60: =($B60*(1+Growth1))*INDEX(Seasonal_Pattern_YR1,$D60,4) -> 150 | L60: =($B60*(1+Growth1))*INDEX(Seasonal_Pattern_YR1,$D60,5) -> 150 | M60: =($B60*(1+Growth1))*INDEX(Seasonal_Pattern_YR1,$D60,6) -> 150 | N60: =($B60*(1+Growth1))*INDEX(Seasonal_Pattern_YR1,$D60,7) -> 150 | O60: =($B60*(1+Growth1))*INDEX(Seasonal_Pattern_YR1,$D60,8) -> 150 | P60: =($B60*(1+Growth1))*INDEX(Seasonal_Pattern_YR1,$D60,9) -> 150 | Q60: =($B60*(1+Growth1))*INDEX(Seasonal_Pattern_YR1,$D60,10) -> 150 | R60: =($B60*(1+Growth1))*INDEX(Seasonal_Pattern_YR1,$D60,11) -> 150 | S60: =($B60*(1+Growth1))*INDEX(Seasonal_Pattern_YR1,$D60,12) -> 150 | T60: =SUM(H60:S60) -> 1800 | U60: =IF(B60<>0,(T60-B60)/B60,0) -> 0
A61: Telephone Charges | B61: 5000 | C61: 0.1 | D61: 3 | G61: =$A61 -> Telephone Charges | H61: =($B61*(1+Growth1))*INDEX(Seasonal_Pattern_YR1,$D61,1) -> 137.5 | I61: =($B61*(1+Growth1))*INDEX(Seasonal_Pattern_YR1,$D61,2) -> 192.5 | J61: =($B61*(1+Growth1))*INDEX(Seasonal_Pattern_YR1,$D61,3) -> 275 | K61: =($B61*(1+Growth1))*INDEX(Seasonal_Pattern_YR1,$D61,4) -> 330 | L61: =($B61*(1+Growth1))*INDEX(Seasonal_Pattern_YR1,$D61,5) -> 385 | M61: =($B61*(1+Growth1))*INDEX(Seasonal_Pattern_YR1,$D61,6) -> 440 | N61: =($B61*(1+Growth1))*INDEX(Seasonal_Pattern_YR1,$D61,7) -> 495 | O61: =($B61*(1+Growth1))*INDEX(Seasonal_Pattern_YR1,$D61,8) -> 550 | P61: =($B61*(1+Growth1))*INDEX(Seasonal_Pattern_YR1,$D61,9) -> 605 | Q61: =($B61*(1+Growth1))*INDEX(Seasonal_Pattern_YR1,$D61,10) -> 660 | R61: =($B61*(1+Growth1))*INDEX(Seasonal_Pattern_YR1,$D61,11) -> 687.5 | S61: =($B61*(1+Growth1))*INDEX(Seasonal_Pattern_YR1,$D61,12) -> 742.5 | T61: =SUM(H61:S61) -> 5500 | U61: =IF(B61<>0,(T61-B61)/B61,0) -> 0.1
A62: Postage | B62: 500 | C62: 0 | D62: 2 | G62: =$A62 -> Postage | H62: =($B62*(1+Growth1))*INDEX(Seasonal_Pattern_YR1,$D62,1) -> 0 | I62: =($B62*(1+Growth1))*INDEX(Seasonal_Pattern_YR1,$D62,2) -> 125 | J62: =($B62*(1+Growth1))*INDEX(Seasonal_Pattern_YR1,$D62,3) -> 0 | K62: =($B62*(1+Growth1))*INDEX(Seasonal_Pattern_YR1,$D62,4) -> 0 | L62: =($B62*(1+Growth1))*INDEX(Seasonal_Pattern_YR1,$D62,5) -> 125 | M62: =($B62*(1+Growth1))*INDEX(Seasonal_Pattern_YR1,$D62,6) -> 0 | N62: =($B62*(1+Growth1))*INDEX(Seasonal_Pattern_YR1,$D62,7) -> 0 | O62: =($B62*(1+Growth1))*INDEX(Seasonal_Pattern_YR1,$D62,8) -> 125 | P62: =($B62*(1+Growth1))*INDEX(Seasonal_Pattern_YR1,$D62,9) -> 0 | Q62: =($B62*(1+Growth1))*INDEX(Seasonal_Pattern_YR1,$D62,10) -> 0 | R62: =($B62*(1+Growth1))*INDEX(Seasonal_Pattern_YR1,$D62,11) -> 125 | S62: =($B62*(1+Growth1))*INDEX(Seasonal_Pattern_YR1,$D62,12) -> 0 | T62: =SUM(H62:S62) -> 500 | U62: =IF(B62<>0,(T62-B62)/B62,0) -> 0
A63: Office charges | B63: 10000 | C63: 0.2 | D63: 1 | G63: =$A63 -> Office charges | H63: =($B63*(1+Growth1))*INDEX(Seasonal_Pattern_YR1,$D63,1) -> 1000 | I63: =($B63*(1+Growth1))*INDEX(Seasonal_Pattern_YR1,$D63,2) -> 1000 | J63: =($B63*(1+Growth1))*INDEX(Seasonal_Pattern_YR1,$D63,3) -> 1000 | K63: =($B63*(1+Growth1))*INDEX(Seasonal_Pattern_YR1,$D63,4) -> 1000 | L63: =($B63*(1+Growth1))*INDEX(Seasonal_Pattern_YR1,$D63,5) -> 1000 | M63: =($B63*(1+Growth1))*INDEX(Seasonal_Pattern_YR1,$D63,6) -> 1000 | N63: =($B63*(1+Growth1))*INDEX(Seasonal_Pattern_YR1,$D63,7) -> 1000 | O63: =($B63*(1+Growth1))*INDEX(Seasonal_Pattern_YR1,$D63,8) -> 1000 | P63: =($B63*(1+Growth1))*INDEX(Seasonal_Pattern_YR1,$D63,9) -> 1000 | Q63: =($B63*(1+Growth1))*INDEX(Seasonal_Pattern_YR1,$D63,10) -> 1000 | R63: =($B63*(1+Growth1))*INDEX(Seasonal_Pattern_YR1,$D63,11) -> 1000 | S63: =($B63*(1+Growth1))*INDEX(Seasonal_Pattern_YR1,$D63,12) -> 1000 | T63: =SUM(H63:S63) -> 12000 | U63: =IF(B63<>0,(T63-B63)/B63,0) -> 0.2
G64: Group Total | H64: =SUM(H60:H63) -> 1287.5 | I64: 1467.5 | J64: 1425 | K64: 1480 | L64: 1660 | M64: 1590 | N64: 1645 | O64: 1825 | P64: 1755 | Q64: 1810 | R64: 1962.5 | S64: 1892.5 | T64: 19800
A66: TOTAL EXPENDITURE | G66: =$A$66 -> TOTAL EXPENDITURE | H66: =H41+H49+H57+H64 -> 9170.791667 | I66: 11269.44167 | J66: 9509.916667 | K66: 9708.566667 | L66: 11649.71667 | M66: 9948.366667 | N66: 10189.51667 | O66: 12448.16667 | P66: 10789.31667 | Q66: 11187.96667 | R66: 13072.29167 | S66: 11570.94167 | T66: 130515

Sheet Monthly Category Budget Chart
